bitfinex/quotes_ETHUSD_20250623
["timestamp","ask_amount","ask_price","bid_price","bid_amount"]
[1750697888401,1.89199,2224.0,2223.0,0.8061]
[1750697888547,1.89199,2224.0,2223.4,8.816]
[1750697888746,1.89199,2224.0,2223.3,8.816]
[1750697889157,1.89199,2224.0,2223.3,13.77054372]
[1750697889564,1.89199,2224.0,2223.3,8.816]
[1750697889757,0.5549,2224.0,2223.4,4.49747711]
[1750697889963,0.5549,2224.0,2223.4,4.49750271]
[1750697890602,0.5549,2224.0,2223.3,8.816]
[1750697890760,13.46041347,2224.0,2223.3,8.812]
[1750697891363,0.5549,2224.0,2223.3,13.30976097]
[1750697891580,1.89199,2224.0,2223.3,8.812]
[1750697891782,0.5549,2224.0,2223.9,4.49660506]
[1750697891997,0.2259102,2224.3,2224.0,4.49638044]
[1750697891998,0.7808102,2224.3,2224.0,4.49638044]
[1750697892554,0.7808102,2224.3,2224.0,4.49640006]
[1750697892952,0.7808102,2224.3,2224.2,4.49599856]
[1750697892953,0.2259102,2224.3,2224.2,4.49599856]
[1750697893172,0.2259102,2224.3,2223.8,4.4966976]
[1750697893377,0.5549,2224.2,2223.9,8.804]
[1750697893574,0.5549,2224.2,2224.0,13.3003295]
[1750697893775,0.2259102,2224.3,2224.0,8.804]
[1750697894599,0.2259102,2224.3,2224.0,8.802]
[1750697894965,0.2259102,2224.3,2224.0,13.29820449]
[1750697895283,0.2259102,2224.3,2224.1,4.49618297]
[1750697895489,0.2259102,2224.3,2224.1,8.8]
[1750697895690,0.2259102,2224.3,2223.7,8.8]
[1750697895856,0.5549,2224.2,2223.7,8.8]
[1750697896067,10.0,2224.0,2223.3,0.4440462]
[1750697896400,0.5549,2223.9,2223.4,8.798]
[1750697896557,0.5549,2223.9,2223.5,13.29535361]
[1750697896901,0.5549,2223.9,2223.6,8.796]
[1750697897083,0.5549,2223.9,2223.3,0.44145708]
[1750697897397,0.5549,2223.9,2223.6,4.49711931]
[1750697897594,0.2259102,2224.3,2224.2,4.49599856]
[1750697897768,0.2259102,2224.3,2224.2,14.07179856]
[1750697897977,0.2259102,2224.3,2224.2,5.72325123]
[1750697898176,0.2259102,2224.3,2224.2,13.73745123]
[1750697898704,0.2259102,2224.3,2224.2,9.24045267]
[1750697898914,0.2259102,2224.3,2224.2,8.793]
[1750697899266,0.2259102,2224.3,2224.2,13.28899856]
[1750697899473,0.2259102,2224.3,2224.2,8.793]
[1750697899996,0.2259102,2224.3,2223.8,0.7808]
[1750697900205,0.2259102,2224.3,2223.9,13.28746082]
[1750697900372,0.2259102,2224.3,2223.9,8.791]
[1750697900580,0.2259102,2224.3,2224.0,4.4963733]
[1750697902716,0.5549,2224.2,2223.2,0.8061]
[1750697902911,0.5549,2224.2,2222.0,4.50037617]
[1750697902912,0.5549,2223.6,2222.8,4.49868261]
[1750697903139,1.05549,2223.5,2222.8,8.784]
[1750697903321,1.05549,2223.5,2222.8,13.28271866]
[1750697903498,0.5549,2223.6,2222.9,4.49843276]
[1750697903693,0.5549,2223.6,2222.8,8.784]
[1750697903694,0.5549,2223.6,2223.2,4.49797889]
[1750697904021,0.5549,2223.6,2223.3,13.28074157]
[1750697904331,0.5549,2224.0,2223.3,8.783]
[1750697904922,0.5549,2224.0,2223.5,4.49738383]
[1750697905116,0.5549,2224.0,2223.6,4.49712694]
[1750697905519,0.5549,2224.0,2223.5,4.94656962]
[1750697905696,1.89179,2224.0,2223.6,8.78]
[1750697906097,1.89179,2224.0,2223.5,8.78]
[1750697906831,1.89179,2224.0,2223.4,4.4976016]
[1750697906997,1.89179,2224.0,2222.8,0.7548]
[1750697907197,13.46041347,2223.9,2222.9,8.777]
[1750697907530,10.0,2223.8,2222.8,0.7548]
[1750697907697,0.5549,2223.7,2222.8,13.27582761]
[1750697907905,0.5549,2223.7,2222.8,8.777]
[1750697908303,0.5549,2223.4,2222.9,8.776]
[1750697908510,10.0,2223.3,2222.7,0.44679356]
[1750697908715,10.0,2223.3,2222.7,8.775]
[1750697908912,0.5549,2223.2,2222.2,4.500045]
[1750697909221,0.5549,2223.2,2222.3,8.775]
[1750697909416,0.5549,2223.2,2222.0,4.50036477]
[1750697909616,0.5549,2223.0,2222.1,13.27423462]
[1750697909815,0.5549,2223.0,2222.1,13.27422999]
[1750697910035,0.5549,2223.0,2222.1,13.27413132]
[1750697910352,2.34604135,2223.1,2222.2,8.773]
[1750697910353,0.5549,2222.9,2222.2,8.773]
[1750697910655,10.5549,2222.9,2222.3,4.49981574]
[1750697910943,12.12639414,2222.9,2222.2,8.773]
[1750697911496,2.12639414,2222.9,2222.3,4.4998097]
[1750697911744,0.5549,2222.9,2222.3,4.4998097]
[1750697911937,0.5549,2222.9,2222.2,13.27294923]
[1750697912137,0.5549,2222.9,2222.2,13.27292751]
[1750697912441,0.5549,2222.9,2222.2,13.273026]
[1750697912827,0.5549,2222.9,2222.2,8.773]
[1750697913030,0.5549,2222.9,2222.3,4.49970632]
[1750697913233,0.5549,2222.9,2222.4,4.4996314]
[1750697913405,0.5549,2222.9,2222.3,4.49973502]
[1750697913606,0.5549,2222.9,2222.2,13.27296755]
[1750697913814,1.12649414,2222.9,2222.0,0.43941003]
[1750697914135,0.5549,2222.8,2222.1,8.767]
[1750697914341,0.5549,2222.8,2222.2,4.49994224]
[1750697914730,0.5549,2222.8,2222.2,4.49995101]
[1750697915040,1.66754941,2222.8,2222.3,4.49968364]
[1750697915205,1.66754941,2222.8,2222.2,4.49988231]
[1750697915206,0.5549,2222.8,2222.1,8.767]
[1750697915619,10.0,2223.0,2222.1,8.767]
[1750697915620,0.5549,2223.6,2222.4,5.04964002]
[1750697915821,0.5549,2223.6,2223.0,4.49828609]
[1750697916116,0.5549,2223.6,2222.7,4.4990327]
[1750697916432,0.5549,2223.5,2222.8,13.26274238]
[1750697916627,1.05549,2223.4,2222.8,13.26274238]
[1750697916833,11.05549,2223.4,2222.7,8.764]
[1750697920934,0.5549,2222.4,2221.8,4.50076423]
[1750697921236,0.5549,2222.4,2221.9,8.756]
[1750697921880,0.5549,2222.4,2221.9,8.755]
[1750697922775,3.83449,2222.9,2220.5,0.8087]
[1750697922776,10.0,2222.8,2220.5,0.8087]
[1750697922927,0.5549,2221.8,2220.5,5.31208425]
[1750697923149,13.3339,2221.8,2220.6,8.753]
[1750697923354,0.5549,2221.7,2220.5,1.26301419]
[1750697923556,1.33339,2221.6,2221.0,4.50237955]
[1750697923787,1.33339,2221.6,2220.9,4.50257004]
[1750697923985,1.33339,2221.6,2220.8,4.50273699]
[1750697924187,1.33339,2221.6,2220.9,4.50251974]
[1750697924387,1.33339,2221.6,2221.0,4.50237424]
[1750697924589,0.5549,2221.7,2220.7,4.50299873]
[1750697924797,12.90551347,2221.6,2220.8,8.75]
[1750697924963,0.5549,2221.4,2220.2,0.8087]
[1750697925168,0.5549,2221.1,2220.3,8.75]
[1750697925351,10.0,2221.0,2219.7,5.31361616]
[1750697925557,0.5549,2220.9,2220.0,10.0]
[1750697925755,0.5549,2220.9,2220.2,4.50400379]
[1750697925976,0.5549,2220.9,2220.2,4.94805303]
[1750697926192,0.5549,2220.9,2220.0,10.0]
[1750697926193,0.5549,2220.9,2220.3,8.749]
[1750697926393,0.5549,2221.2,2220.4,8.75]
[1750697926695,0.5549,2221.5,2220.5,4.50331352]
[1750697926909,0.5549,2221.5,2220.9,4.50267428]
[1750697927265,0.88839,2221.5,2220.8,4.5027563]
[1750697927564,0.88839,2221.5,2220.4,4.50368481]
[1750697927565,0.88839,2221.5,2220.9,13.25067001]
[1750697927954,0.88839,2221.5,2221.0,4.50237212]
[1750697928169,0.5549,2221.5,2221.0,4.50239372]
[1750697928370,0.5549,2221.5,2221.1,4.50214963]
[1750697928574,0.5549,2221.5,2220.9,8.748]
[1750697928775,0.5549,2221.5,2221.2,4.50197425]
[1750697928974,0.5549,2221.5,2220.9,13.25053067]
[1750697929175,0.5549,2221.5,2221.0,4.50239267]
[1750697929498,0.5549,2221.5,2221.0,8.746]
[1750697929813,0.5549,2221.5,2221.1,4.50217168]
[1750697930107,0.5549,2221.5,2221.3,4.50172917]
[1750697930295,0.5549,2221.8,2221.0,8.746]
[1750697930500,0.5549,2221.8,2221.5,4.50137089]
[1750697930802,10.5549,2222.2,2221.6,13.24512788]
[1750697931002,10.5549,2222.2,2221.7,4.50104443]
[1750697931197,0.5549,2222.2,2221.9,4.50056115]
[1750697931404,0.5549,2222.2,2221.7,4.50086264]
[1750697931706,10.5549,2222.2,2221.1,5.25428248]
[1750697931912,10.5549,2222.2,2221.2,9.291]
[1750697932209,10.5549,2222.2,2221.5,4.50127844]
[1750697932412,10.5549,2222.2,2221.7,4.50103834]
[1750697932578,4.04241991,2223.8,2222.2,0.7687]
[1750697932778,0.5549,2223.8,2222.5,0.7687]
[1750697933005,0.2259102,2224.3,2223.3,4.49781855]
[1750697933217,0.2259102,2224.3,2223.4,8.739]
[1750697933922,0.2259102,2224.3,2223.5,8.739]
[1750697934120,0.5549,2224.2,2223.5,8.739]
[1750697934455,10.0,2224.0,2223.1,8.739]
[1750697934727,12.90551347,2223.5,2223.1,8.739]
[1750697934925,10.0,2223.4,2222.8,4.4987445]
[1750697935226,0.5549,2223.6,2223.1,4.49807793]
[1750697935528,0.5549,2223.6,2222.7,4.49888275]
[1750697935726,10.0,2223.5,2222.8,8.736]
[1750697936323,0.5549,2223.4,2222.5,0.4465916]
[1750697936526,10.0,2223.2,2222.0,0.8001]
[1750697936686,10.0,2223.2,2222.5,4.49930987]
[1750697936886,10.0,2223.2,2222.6,4.49922775]
[1750697937126,0.5549,2223.4,2222.5,0.44910057]
[1750697937316,0.5549,2223.4,2222.4,13.23451876]
[1750697937716,0.5549,2223.4,2222.4,8.735]
[1750697937913,0.5549,2223.4,2222.3,4.49981313]
[1750697938113,0.5549,2222.8,2222.3,0.44378471]
[1750697938335,2.78,2222.7,2222.0,4.50044779]
[1750697938531,2.78,2222.7,2221.9,4.50057036]
[1750697938846,2.78,2222.7,2222.0,4.50040579]
[1750697939044,2.78,2222.7,2221.9,8.734]
[1750697939341,2.78,2222.7,2222.0,4.50044393]
[1750697939549,2.78,2222.7,2222.0,4.50045004]
[1750697939765,0.5549,2222.8,2222.3,4.49969436]
[1750697940068,0.5549,2222.8,2222.4,4.49947036]
[1750697940369,0.5549,2222.8,2222.4,13.23247036]
[1750697940569,0.5549,2222.8,2222.3,4.49983086]
[1750697940739,10.0,2223.0,2222.7,4.4990327]
[1750697940942,0.5549,2223.2,2222.7,4.4990327]
[1750697941241,0.5549,2223.2,2222.2,9.5231]
[1750697941443,0.5549,2223.2,2222.6,4.49913023]
[1750697941759,0.5549,2223.5,2222.3,0.55]
[1750697941920,0.5549,2223.5,2223.2,4.49791215]
[1750697942116,0.5549,2224.0,2223.1,8.731]
[1750697942329,0.5549,2224.0,2223.3,4.49761716]
[1750697942542,0.5549,2224.0,2223.2,8.731]
[1750697942859,0.5549,2224.0,2223.5,4.49729842]
[1750697942860,10.5549,2224.0,2223.5,4.49729842]
[1750697943033,0.5549,2224.0,2223.2,8.731]
[1750697943231,0.5549,2224.0,2223.7,4.49693343]
[1750697943458,0.5549,2224.0,2223.4,4.49759142]
[1750697943627,0.5549,2224.0,2223.8,8.73]
[1750697943817,0.5549,2224.0,2223.8,13.2266969]
[1750697944034,10.0,2224.5,2223.8,13.2266568]
[1750697944035,0.7808102,2224.3,2223.8,13.2266568]
[1750697944259,0.7808102,2224.3,2223.8,8.73]
[1750697944458,0.7808102,2224.3,2223.8,13.22667612]
[1750697944618,0.2259102,2224.3,2224.2,4.49599856]
[1750697945435,0.2259102,2224.3,2224.2,8.727]
[1750697945630,0.2259102,2224.3,2224.2,13.22299856]
[1750697946654,0.2259102,2224.3,2224.2,13.98299856]
[1750697946976,0.2259102,2224.3,2224.2,23.98299856]
[1750697947124,0.20512356,2224.3,2224.2,23.98299856]
[1750697947330,0.5549,2225.9,2224.9,5.04458402]
[1750697947659,0.5549,2225.9,2224.9,40.24179749]
[1750697947864,0.5549,2225.9,2224.9,26.78628402]
[1750697948178,2.754,2226.4,2224.9,27.33628402]
[1750697948383,0.5549,2226.2,2224.9,42.81661949]
[1750697948687,42.9268,2225.0,2224.9,15.85828402]
[1750697948867,42.9268,2225.0,2224.9,24.58128402]
[1750697949182,42.9268,2225.0,2224.9,24.03128402]
[1750697949548,42.9268,2225.0,2224.9,15.30828402]
[1750697949747,42.9268,2225.0,2224.9,24.03028402]
[1750697950075,42.9268,2225.0,2223.8,13.35070292]
[1750697950384,42.9268,2225.0,2224.3,4.49560719]
[1750697950591,0.8143,2224.9,2224.1,4.49602718]
[1750697950791,0.8143,2224.9,2224.2,8.719]
[1750697951104,10.8143,2224.9,2224.3,8.719]
[1750697951585,10.0,2224.7,2224.3,8.718]
[1750697951788,10.8143,2224.9,2224.4,4.49544695]
[1750697951945,10.8143,2224.9,2224.2,4.49585048]
[1750697952155,10.8143,2224.9,2224.3,13.21376139]
[1750697952346,10.8143,2224.9,2224.3,13.21368678]
[1750697952547,10.8143,2224.9,2224.3,8.718]
[1750697953155,0.8143,2224.9,2224.3,13.21360108]
[1750697953397,0.8143,2224.9,2224.6,4.49507977]
[1750697953587,0.8143,2224.9,2224.7,8.716]
[1750697953892,0.8143,2224.9,2224.2,0.7591]
[1750697954077,10.0,2224.8,2224.3,8.716]
[1750697954926,5.18841,2224.9,2224.3,8.716]
[1750697955079,7.94141,2224.9,2224.3,8.716]
[1750697956214,10.8243,2224.8,2224.2,8.713]
[1750697956617,0.7921,2224.6,2223.6,4.49718203]
[1750697956782,0.7921,2224.6,2223.4,4.49749978]
[1750697957113,0.7921,2224.6,2223.2,0.7582]
[1750697957114,0.7921,2224.6,2223.6,14.49719293]
[1750697957414,0.7921,2224.6,2223.6,14.49710198]
[1750697957711,0.7921,2224.6,2223.3,4.49781855]
[1750697957918,10.0,2224.4,2223.2,4.49794759]
[1750697958124,14.34505844,2224.1,2223.1,4.49820946]
[1750697958282,10.7935,2224.0,2223.2,8.712]
[1750697958478,10.0,2223.8,2223.2,8.712]
[1750697958682,0.7514,2223.7,2223.1,8.711]
[1750697959116,14.34505844,2223.6,2223.1,8.712]
[1750697959317,12.26104584,2223.5,2223.1,8.712]
[1750697959891,12.26104584,2223.5,2222.6,0.45405229]
[1750697960090,12.26104584,2223.5,2222.7,8.711]
[1750697960307,2.26104584,2223.5,2222.7,8.711]
[1750697960514,0.7514,2223.5,2222.7,13.20991744]
[1750697960912,0.7514,2223.5,2222.8,4.49879907]
[1750697961431,0.7514,2223.5,2222.9,4.4986026]
[1750697961726,0.7514,2223.5,2223.1,4.49811641]
[1750697962026,0.7514,2223.5,2222.9,4.49862764]
[1750697962226,0.7514,2223.5,2222.6,0.44901027]
[1750697962428,0.7514,2223.5,2222.8,4.49873363]
[1750697962630,0.7514,2223.5,2222.7,13.20895466]
[1750697962832,0.7514,2223.5,2222.8,8.709]
[1750697963343,0.7514,2223.5,2223.0,4.49841203]
[1750697963544,0.7514,2223.5,2222.6,0.46048987]
[1750697963745,10.0,2223.4,2222.7,8.708]
[1750697963915,5.98530584,2223.3,2222.6,0.44964052]
[1750697964116,5.98530584,2223.3,2222.6,8.708]
[1750697964647,0.55,2223.2,2222.3,8.708]
[1750697964848,0.8221,2223.1,2222.3,8.708]
[1750697965055,0.8221,2223.1,2222.3,13.20772244]
[1750697965213,0.8221,2223.1,2222.4,4.49961068]
[1750697965413,0.8221,2223.1,2222.3,13.66917373]
[1750697965609,0.8221,2223.1,2222.4,4.49961941]
[1750697965846,10.0,2223.0,2222.5,4.49934105]
[1750697966050,0.8221,2223.1,2222.5,4.49930375]
[1750697966215,0.8221,2223.1,2222.8,4.49873022]
[1750697966410,10.0,2223.5,2222.8,4.49873022]
[1750697966411,0.7619,2223.5,2222.9,4.49862791]
[1750697966616,0.7619,2223.5,2222.8,9.5225]
[1750697966816,0.7619,2223.5,2223.0,4.49832577]
[1750697967052,0.7619,2223.5,2223.1,4.49819792]
[1750697967419,0.7619,2223.5,2222.8,8.707]
[1750697967618,0.7619,2223.5,2222.9,4.49845661]
[1750697968039,0.7619,2223.5,2223.1,4.49821781]
[1750697968244,0.7619,2223.5,2223.1,4.49812753]
[1750697968460,0.7619,2223.5,2223.1,4.49820535]
[1750697968666,0.7619,2223.5,2223.2,4.49800764]
[1750697968975,0.7619,2223.5,2223.0,4.49832147]
[1750697969177,0.7619,2223.5,2223.1,4.4982171]
[1750697969337,0.7619,2223.5,2222.9,4.4985519]
[1750697969674,0.7619,2223.5,2223.3,4.49770096]
[1750697969841,0.7624,2223.8,2223.3,8.703]
[1750697971138,0.7624,2223.8,2223.3,13.20081087]
[1750697971450,0.7624,2223.8,2223.3,8.703]
[1750697972471,10.7624,2223.8,2223.3,8.701]
[1750697973076,0.8209,2223.7,2223.2,4.49789705]
[1750697973253,0.8209,2223.7,2223.2,13.19689705]
[1750697973453,0.8209,2223.7,2223.0,4.49839497]
[1750697973697,0.8209,2223.7,2223.3,8.699]
[1750697975637,0.8209,2223.7,2223.1,4.49810705]
[1750697975638,0.8209,2223.7,2223.4,8.696]
[1750697975840,0.8209,2223.7,2223.4,8.695]
[1750697976705,0.8209,2223.7,2222.9,4.49850772]
[1750697976845,0.8209,2223.7,2223.1,8.695]
[1750697977048,3.5559,2223.7,2223.1,8.695]
[1750697977356,4.91149,2223.7,2223.1,8.695]
[1750697977557,3.5559,2223.7,2223.1,13.19312631]
[1750697977766,0.7906,2224.0,2223.1,9.5061]
[1750697977943,5.04473535,2224.9,2223.1,9.5061]
[1750697977944,0.7906,2224.3,2223.2,0.41707507]
[1750697978143,0.7906,2224.3,2224.2,4.49599856]
[1750697978365,0.7906,2224.3,2224.1,8.692]
[1750697978570,0.7906,2224.3,2224.1,13.18815168]
[1750697978759,0.7906,2224.3,2224.1,9.13746698]
[1750697978961,0.7906,2224.3,2223.5,8.691]
[1750697978962,10.0,2224.2,2223.5,8.691]
[1750697979194,2.735,2224.1,2223.5,13.18831557]
[1750697979376,2.735,2224.1,2223.5,8.691]
[1750697979680,2.735,2224.1,2223.5,13.18831444]
[1750697979867,2.735,2224.1,2223.6,0.41825552]
[1750697980451,2.735,2224.1,2223.6,0.41827441]
[1750697980749,2.735,2224.1,2223.6,0.41844358]
[1750697980944,2.735,2224.1,2223.6,0.41842831]
[1750697981291,0.8066,2224.0,2223.5,0.44484554]
[1750697981448,0.8066,2224.0,2223.5,0.4184515]
[1750697981995,12.83244741,2224.3,2223.4,13.18553963]
[1750697981996,0.8203,2224.3,2223.4,9.4615]
[1750697982203,10.8203,2224.3,2223.8,4.49671953]
[1750697982363,0.8203,2224.3,2223.9,13.1835937]
[1750697982568,0.8289,2224.8,2224.0,0.41850567]
[1750697982899,0.8289,2224.8,2224.1,0.41861591]
[1750697982900,3.5639,2224.8,2224.1,0.41861591]
[1750697983205,3.5639,2224.8,2224.5,4.49523192]
[1750697983477,3.5639,2224.8,2224.5,4.91380589]
[1750697983478,0.8289,2224.8,2224.5,4.91380589]
[1750697983681,0.769,2225.2,2224.7,4.49498808]
[1750697983895,0.769,2225.2,2224.6,0.4187449]
[1750697984059,0.769,2225.2,2224.7,4.91363466]
[1750697984390,0.769,2225.2,2224.8,4.91346923]
[1750697984794,0.769,2225.2,2224.9,9.10269587]
[1750697984955,0.769,2225.2,2224.9,0.41869587]
[1750697985164,0.769,2225.2,2224.8,8.683]
[1750697985586,0.769,2225.2,2224.9,0.41893467]
[1750697985785,47.29638,2225.0,2224.5,8.682]
[1750697985982,47.29638,2225.0,2224.6,0.41871622]
[1750697986195,0.8082,2224.8,2224.2,0.46109405]
[1750697986397,0.8082,2224.8,2224.1,0.41878657]
[1750697986598,0.8082,2224.8,2223.7,0.7569]
[1750697986599,10.0,2224.6,2224.0,8.681]
[1750697986746,2.0816,2224.5,2224.0,8.681]
[1750697986946,2.0816,2224.5,2223.8,8.68]
[1750697987151,1.2734,2224.5,2223.8,8.68]
[1750697987389,0.7947,2224.4,2223.8,8.68]
[1750697987582,10.0,2224.2,2223.6,8.678]
[1750697987883,0.7947,2224.0,2223.7,0.41896134]
[1750697988715,0.7801,2224.6,2224.1,4.4960953]
[1750697988863,0.7801,2224.6,2224.2,9.09496134]
[1750697989065,0.7801,2224.6,2224.3,0.41896134]
[1750697989372,0.7801,2224.6,2224.3,4.914755]
[1750697989574,42.9268,2225.0,2224.8,4.49478604]
[1750697989882,42.9268,2225.0,2224.9,9.09357781]
[1750697990285,42.9268,2225.0,2224.9,8.675]
[1750697990901,42.9268,2225.0,2224.9,13.16958402]
[1750697991107,42.9268,2225.0,2224.9,8.675]
[1750697993014,42.9268,2225.0,2224.9,13.16958402]
[1750697993607,42.9268,2225.0,2224.9,8.669]
[1750697993808,42.9268,2225.0,2224.9,13.16358402]
[1750697994020,42.9268,2225.0,2224.9,8.669]
[1750697994221,42.9268,2225.0,2224.9,9.1177946]
[1750697994525,42.9268,2225.0,2224.4,5.29693077]
[1750697994685,42.9268,2225.0,2224.6,4.49517548]
[1750697994890,42.9268,2225.0,2224.7,4.49490006]
[1750697995113,42.9268,2225.0,2224.8,4.49466135]
[1750697995312,42.9268,2225.0,2224.9,13.16058402]
[1750697995715,42.9268,2225.0,2224.9,8.666]
[1750697995928,42.9268,2225.0,2224.9,8.665]
[1750697996298,43.7377,2225.0,2224.7,8.663]
[1750697996630,42.9268,2225.0,2224.7,13.15794948]
[1750697997186,42.9268,2225.0,2224.8,4.49478151]
[1750697997414,42.9268,2225.0,2224.7,13.15787252]
[1750697998314,42.9268,2225.0,2224.7,13.157902]
[1750697998513,42.9268,2225.0,2224.8,4.49469454]
[1750697998713,42.9268,2225.0,2224.8,4.91232045]
[1750697998913,42.9268,2225.0,2224.8,4.49469529]
[1750697999114,42.9268,2225.0,2224.9,8.658]
[1750697999826,42.9268,2225.0,2224.9,13.15258402]
[1750698000328,42.9268,2225.0,2224.9,14.38006302]
[1750698000641,42.9268,2225.0,2224.9,0.417479]
[1750698000840,48.01258,2225.0,2224.2,0.8166]
[1750698001129,10.0,2224.6,2224.3,8.656]
[1750698001338,10.0,2224.6,2223.8,0.43935228]
[1750698001339,10.0,2224.3,2223.8,0.43935228]
[1750698001551,0.7931,2224.0,2223.2,4.49787463]
[1750698001841,12.83244741,2223.7,2223.2,0.45100535]
[1750698002136,0.7554,2223.6,2223.1,8.653]
[1750698002438,0.7554,2223.6,2223.1,9.46799109]
[1750698002927,0.7554,2223.6,2223.1,0.81499109]
[1750698003128,0.7554,2223.6,2223.2,8.652]
[1750698003546,0.7554,2223.6,2223.1,0.81499109]
[1750698003833,1.83094,2223.6,2223.1,0.37550384]
[1750698004028,14.66338741,2223.6,2223.1,0.37550384]
[1750698004623,10.8097,2223.2,2223.1,0.37550384]
[1750698004915,13.5437,2223.2,2223.1,0.37550384]
[1750698005596,13.5437,2223.2,2222.7,8.651]
[1750698005791,0.8097,2223.2,2222.7,8.651]
[1750698006098,0.8097,2223.2,2222.8,0.37555452]
[1750698006507,10.8097,2223.2,2222.8,0.37555452]
[1750698007203,0.7918,2223.9,2223.0,4.49841406]
[1750698007529,10.799,2224.2,2222.6,5.75521187]
[1750698007530,0.75,2223.7,2223.1,0.37550384]
[1750698007701,1.0957,2223.7,2223.1,0.37550384]
[1750698007910,11.0957,2223.7,2223.1,0.37550384]
[1750698009147,0.75,2223.7,2223.1,0.37550384]
[1750698009825,0.75,2223.7,2222.7,8.645]
[1750698010233,0.75,2223.7,2222.6,1.2220819]
[1750698010234,0.75,2223.7,2222.8,8.645]
[1750698010418,0.75,2223.7,2222.9,10.0]
[1750698010625,0.75,2223.7,2222.6,1.2220819]
[1750698010947,2.28049382,2223.7,2222.9,10.0]
[1750698011146,0.7774,2223.9,2222.9,10.0]
[1750698012208,0.7774,2223.9,2222.6,1.2220819]
[1750698012415,0.8314,2223.8,2223.0,8.642]
[1750698013227,12.83244741,2223.6,2222.6,1.2220819]
[1750698013514,2.10864474,2223.5,2222.6,0.4501819]
[1750698013714,2.707,2223.4,2222.4,8.64]
[1750698014017,2.10864474,2223.5,2222.6,10.0]
[1750698014219,2.10864474,2223.5,2222.5,8.639]
[1750698014220,2.707,2223.4,2222.4,0.44952319]
[1750698014426,2.707,2223.4,2222.5,8.638]
[1750698014752,2.707,2223.4,2222.3,0.8219]
[1750698014753,13.65784741,2223.3,2222.3,8.638]
[1750698014910,13.65784741,2223.3,2222.0,0.8219]
[1750698014911,10.7986,2223.2,2222.0,0.8219]
[1750698015111,0.7986,2222.8,2221.6,0.8264]
[1750698015351,0.7986,2222.8,2221.7,8.636]
[1750698015352,4.07010474,2222.7,2221.7,8.636]
[1750698016338,4.07010474,2222.7,2221.7,0.44011309]
[1750698016546,0.7658,2222.6,2221.7,9.07611309]
[1750698016748,0.7658,2222.6,2221.7,9.08043543]
[1750698017419,0.7658,2222.6,2221.7,0.44443543]
[1750698017624,0.48359047,2222.5,2221.3,0.7739]
[1750698017821,0.48359047,2222.5,2221.4,8.634]
[1750698018259,0.48359047,2222.5,2221.3,0.7739]
[1750698018468,12.83244741,2222.3,2221.4,8.633]
[1750698019170,12.83244741,2222.0,2220.7,0.7514]
[1750698019371,0.8022,2221.8,2220.8,8.633]
[1750698019728,0.8022,2221.8,2220.9,10.0]
[1750698020028,0.8022,2221.8,2221.0,0.55]
[1750698020337,0.8022,2221.8,2221.1,10.0]
[1750698021453,2.708,2222.1,2221.1,10.0]
[1750698021454,3.4747,2222.1,2221.1,10.0]
[1750698021656,3.4747,2222.1,2221.2,0.55]
[1750698021657,0.7667,2222.1,2221.2,0.55]
[1750698021857,0.7667,2222.1,2221.1,0.7856]
[1750698022032,0.7667,2222.1,2221.3,8.628]
[1750698022238,1.84337,2222.1,2221.3,8.629]
[1750698022440,2.708,2222.0,2221.3,8.629]
[1750698022773,0.7667,2222.1,2221.3,8.629]
[1750698023235,0.7667,2222.1,2220.9,0.44717003]
[1750698023437,0.8186,2221.9,2220.8,0.7749]
[1750698023673,0.8186,2221.9,2220.8,8.627]
[1750698023879,0.8186,2221.9,2220.9,10.0]
[1750698025472,0.8186,2221.9,2220.8,0.44383563]
[1750698025771,3.5276,2221.9,2220.9,8.628]
[1750698026664,3.88036,2221.9,2220.9,8.628]
[1750698026863,0.7994,2221.8,2220.5,0.55]
[1750698027041,0.7994,2221.8,2220.9,8.624]
[1750698027373,12.83244741,2221.3,2220.5,0.45745006]
[1750698027575,0.786,2221.1,2219.8,0.8205]
[1750698027779,0.786,2220.9,2219.9,8.622]
[1750698028080,0.786,2220.9,2220.0,10.0]
[1750698028784,0.786,2220.9,2220.1,0.55]
[1750698028977,10.0,2221.6,2220.4,0.55]
[1750698028978,0.8154,2221.3,2220.4,0.55]
[1750698029144,0.8154,2221.3,2220.4,10.55]
[1750698029339,2.709,2221.7,2220.6,0.55]
[1750698029340,0.8154,2221.6,2220.6,0.55]
[1750698029675,0.8154,2221.6,2220.8,10.0]
[1750698030451,1.16784,2221.6,2220.5,0.8319]
[1750698030776,1.16784,2221.6,2220.6,8.618]
[1750698031076,0.8206,2221.5,2220.6,8.618]
[1750698031263,0.8206,2221.5,2220.7,8.618]
[1750698032043,0.8206,2221.5,2220.9,1.3304]
[1750698032256,4.90372499,2223.0,2220.9,1.3304]
[1750698032257,0.8328,2222.2,2220.9,1.3304]
[1750698032456,3.89598,2222.2,2221.1,10.55]
[1750698032659,3.5418,2222.2,2221.1,10.55]
[1750698033245,10.814,2222.8,2221.3,10.55]
[1750698033445,3.5224,2222.7,2221.6,0.55]
[1750698033686,3.5224,2222.7,2221.8,10.0]
[1750698033842,3.5224,2222.7,2221.6,0.44462874]
[1750698034176,0.8231,2222.6,2221.5,8.613]
[1750698034379,10.0,2222.6,2221.5,8.613]
[1750698034572,0.822,2222.5,2221.5,8.613]
[1750698035244,0.822,2222.3,2220.6,0.8197]
[1750698035455,0.8269,2221.9,2220.7,8.61]
[1750698035776,2.677,2221.8,2220.7,9.06197611]
[1750698036108,2.677,2221.8,2220.9,0.55]
[1750698036287,0.8269,2221.9,2220.9,1.3479]